[Event "Late-Titled-Tuesday-Blitz-June-04-2024"]
[Site "Chess.com"]
[Date "2024.06.04"]
[Round "7"]
[White "IlanSchnaider"]
[Black "zverr1"]
[Result "1-0"]
[WhiteElo "2782"]
[BlackElo "2610"]
[TimeControl "180+1"]
[EndTime "15:16:09 PDT"]
[Termination "IlanSchnaider won on time"]

1. e4 {[%clk 0:03:00.9]} 1... c5 {[%clk 0:02:59.9]} 2. c3 {[%clk 0:02:57.6]}
2... g6 {[%clk 0:02:59.2]} 3. Nf3 {[%clk 0:02:56.6]} 3... Bg7 {[%clk 0:02:58]}
4. d4 {[%clk 0:02:56.1]} 4... cxd4 {[%clk 0:02:58.1]} 5. cxd4 {[%clk 0:02:57]}
5... d5 {[%clk 0:02:58.8]} 6. e5 {[%clk 0:02:56.7]} 6... a6 {[%clk 0:02:59]} 7.
Nc3 {[%clk 0:02:55.7]} 7... Nc6 {[%clk 0:02:59.2]} 8. Be2 {[%clk 0:02:54.9]}
8... Bg4 {[%clk 0:02:59.1]} 9. O-O {[%clk 0:02:54.7]} 9... e6 {[%clk 0:02:59]}
10. Be3 {[%clk 0:02:53.7]} 10... Nge7 {[%clk 0:02:59.2]} 11. Qd2 {[%clk
0:02:53.4]} 11... O-O {[%clk 0:02:57.1]} 12. Bg5 {[%clk 0:02:49.5]} 12... Bxf3
{[%clk 0:02:36.1]} 13. Bxf3 {[%clk 0:02:47.7]} 13... f6 {[%clk 0:02:33.7]} 14.
exf6 {[%clk 0:02:42.6]} 14... Bxf6 {[%clk 0:02:34.6]} 15. Bxf6 {[%clk 0:02:43]}
15... Rxf6 {[%clk 0:02:35.5]} 16. Rfe1 {[%clk 0:02:42.3]} 16... Nf5 {[%clk
0:02:23.8]} 17. Rad1 {[%clk 0:02:37.6]} 17... Nfxd4 {[%clk 0:02:08.6]} 18. Bg4
{[%clk 0:02:37.1]} 18... Qd6 {[%clk 0:01:51.8]} 19. Qg5 {[%clk 0:01:57]} 19...
Raf8 {[%clk 0:01:39.2]} 20. Rd2 {[%clk 0:01:57]} 20... e5 {[%clk 0:01:29.2]} 21.
h4 {[%clk 0:01:40.2]} 21... Kg7 {[%clk 0:01:08.9]} 22. b4 {[%clk 0:01:24.8]}
22... h6 {[%clk 0:00:50.3]} 23. Qe3 {[%clk 0:01:24.3]} 23... Rf4 {[%clk
0:00:45.6]} 24. Bh3 {[%clk 0:01:17.6]} 24... Rxh4 {[%clk 0:00:36.1]} 25. Qg3
{[%clk 0:00:45.2]} 25... Rhf4 {[%clk 0:00:32.7]} 26. Ne2 {[%clk 0:00:27.1]}
26... Nxe2+ {[%clk 0:00:28.6]} 27. Rdxe2 {[%clk 0:00:27.4]} 27... Qxb4 {[%clk
0:00:21.7]} 28. Bd7 {[%clk 0:00:23]} 28... Rxf2 {[%clk 0:00:15.7]} 29. Bxc6
{[%clk 0:00:19.6]} 29... Rxe2 {[%clk 0:00:10.8]} 30. Rxe2 {[%clk 0:00:20.5]}
30... Qd4+ {[%clk 0:00:07.2]} 31. Kh2 {[%clk 0:00:17.8]} 31... bxc6 {[%clk
0:00:07.3]} 32. Rxe5 {[%clk 0:00:18.4]} 32... Qf4 {[%clk 0:00:05.8]} 33. Re7+
{[%clk 0:00:18.2]} 33... Kg8 {[%clk 0:00:04.6]} 34. Re6 {[%clk 0:00:17.5]} 34...
Qxg3+ {[%clk 0:00:04.5]} 35. Kxg3 {[%clk 0:00:17.6]} 35... Rc8 {[%clk
0:00:01.5]} 36. Rxg6+ {[%clk 0:00:17.3]} 36... Kh7 {[%clk 0:00:02.4]} 37. Rd6
{[%clk 0:00:17.8]} 37... Kg7 {[%clk 0:00:02.3]} 38. Kf4 {[%clk 0:00:17.8]} 38...
Kf7 {[%clk 0:00:01.2]} 39. Ke5 {[%clk 0:00:18.3]} 39... Ke7 {[%clk 0:00:01.4]}
40. Rxh6 {[%clk 0:00:18.5]} 40... d4 {[%clk 0:00:01]} 41. Rh7+ {[%clk
0:00:17.4]} 41... Ke8 {[%clk 0:00:01.1]} 42. Ke6 {[%clk 0:00:16.7]} 42... Kd8
{[%clk 0:00:01]} 43. Kd6 {[%clk 0:00:16.7]} 43... Ke8 {[%clk 0:00:01.1]} 44.
Rh8+ {[%clk 0:00:17.2]} 44... Kf7 {[%clk 0:00:01.7]} 45. Rxc8 {[%clk 0:00:17.9]}
45... d3 {[%clk 0:00:02.3]} 46. Rd8 {[%clk 0:00:18.4]} 46... d2 {[%clk
0:00:01.2]} 47. Kxc6 {[%clk 0:00:18.9]} 1-0

[Event "Late-Titled-Tuesday-Blitz-June-04-2024"]
[Site "Chess.com"]
[Date "2024.06.04"]
[Round "7"]
[White "cthake"]
[Black "Mariia89"]
[Result "0-1"]
[WhiteElo "1753"]
[BlackElo "2236"]
[TimeControl "180+1"]
[EndTime "15:16:10 PDT"]
[Termination "Mariia89 won on time"]

1. e4 {[%clk 0:03:00.9]} 1... c6 {[%clk 0:02:59.2]} 2. d4 {[%clk 0:03:00.3]}
2... d5 {[%clk 0:03:00.1]} 3. e5 {[%clk 0:03:00.7]} 3... Bf5 {[%clk 0:03:00.2]}
4. Nf3 {[%clk 0:02:58.8]} 4... e6 {[%clk 0:03:00.3]} 5. Be2 {[%clk 0:02:58.7]}
5... c5 {[%clk 0:03:00.8]} 6. dxc5 {[%clk 0:02:46.3]} 6... Bxc5 {[%clk
0:02:59.9]} 7. O-O {[%clk 0:02:46.9]} 7... Nc6 {[%clk 0:02:59.9]} 8. Nbd2 {[%clk
0:02:44.4]} 8... Nge7 {[%clk 0:02:47.7]} 9. Nb3 {[%clk 0:02:43.9]} 9... Bb6
{[%clk 0:02:48.2]} 10. c3 {[%clk 0:02:41.5]} 10... Bg4 {[%clk 0:02:37.6]} 11.
Bb5 {[%clk 0:02:28.5]} 11... O-O {[%clk 0:02:35.4]} 12. Re1 {[%clk 0:02:15.7]}
12... Ng6 {[%clk 0:02:33.4]} 13. Bxc6 {[%clk 0:02:11.4]} 13... bxc6 {[%clk
0:02:31.3]} 14. h3 {[%clk 0:02:10.2]} 14... Bf5 {[%clk 0:02:09.4]} 15. Nbd4
{[%clk 0:02:09]} 15... Be4 {[%clk 0:02:07.7]} 16. Nxc6 {[%clk 0:02:06]} 16...
Qc7 {[%clk 0:02:06.6]} 17. Ncd4 {[%clk 0:02:05.5]} 17... a6 {[%clk 0:01:39.6]}
18. h4 {[%clk 0:01:53]} 18... Bxd4 {[%clk 0:01:24.8]} 19. Qxd4 {[%clk
0:01:49.1]} 19... Bxf3 {[%clk 0:01:14.2]} 20. gxf3 {[%clk 0:01:48.7]} 20... Ne7
{[%clk 0:01:14.5]} 21. Qg4 {[%clk 0:01:36.5]} 21... Nf5 {[%clk 0:01:14.4]} 22.
Bf4 {[%clk 0:01:26.1]} 22... Rfb8 {[%clk 0:01:00.5]} 23. Re2 {[%clk 0:01:18]}
23... Qc4 {[%clk 0:00:42]} 24. Rd2 {[%clk 0:01:04.8]} 24... a5 {[%clk
0:00:37.1]} 25. Kh2 {[%clk 0:00:46.4]} 25... Kf8 {[%clk 0:00:19.9]} 26. Rg1
{[%clk 0:00:45.9]} 26... a4 {[%clk 0:00:19.3]} 27. Rd4 {[%clk 0:00:32.8]} 27...
Qc7 {[%clk 0:00:17.3]} 28. Rd2 {[%clk 0:00:25.8]} 28... a3 {[%clk 0:00:16.9]}
29. b3 {[%clk 0:00:20.7]} 29... Qxc3 {[%clk 0:00:16.3]} 30. h5 {[%clk
0:00:19.3]} 30... h6 {[%clk 0:00:13.8]} 31. Bxh6 {[%clk 0:00:13.6]} 31... gxh6
{[%clk 0:00:13.9]} 32. Rdd1 {[%clk 0:00:09.1]} 32... Qb4 {[%clk 0:00:11.8]} 33.
Qg8+ {[%clk 0:00:07.1]} 33... Ke7 {[%clk 0:00:12]} 34. Qh7 {[%clk 0:00:07.3]}
34... Qh4+ {[%clk 0:00:12]} 35. Kg2 {[%clk 0:00:06.1]} 35... Qxh5 {[%clk
0:00:09.5]} 36. Kf1 {[%clk 0:00:05.1]} 36... Qxf3 {[%clk 0:00:08]} 37. Re1
{[%clk 0:00:03.8]} 37... Qd3+ {[%clk 0:00:07.4]} 38. Re2 {[%clk 0:00:03.2]}
38... Ng3+ {[%clk 0:00:06.9]} 39. Rxg3 {[%clk 0:00:01]} 39... Qxh7 {[%clk
0:00:07.4]} 0-1

[Event "Late-Titled-Tuesday-Blitz-June-04-2024"]
[Site "Chess.com"]
[Date "2024.06.04"]
[Round "7"]
[White "szachmistrz2500"]
[Black "AradNazari"]
[Result "0-1"]
[WhiteElo "2496"]
[BlackElo "2719"]
[TimeControl "180+1"]
[EndTime "15:16:11 PDT"]
[Termination "AradNazari won on time"]

1. d4 {[%clk 0:03:00.9]} 1... c5 {[%clk 0:02:57.2]} 2. d5 {[%clk 0:03:00.2]}
2... e6 {[%clk 0:02:50.5]} 3. e4 {[%clk 0:02:59.4]} 3... d6 {[%clk 0:02:48.7]}
4. Nc3 {[%clk 0:02:58.6]} 4... Nf6 {[%clk 0:02:49.3]} 5. Nf3 {[%clk 0:02:57.5]}
5... a6 {[%clk 0:02:49.8]} 6. a4 {[%clk 0:02:56.6]} 6... Be7 {[%clk 0:02:47.9]}
7. Be2 {[%clk 0:02:55.4]} 7... O-O {[%clk 0:02:48.5]} 8. O-O {[%clk 0:02:54.8]}
8... Nbd7 {[%clk 0:02:48.2]} 9. Nd2 {[%clk 0:02:45.1]} 9... exd5 {[%clk
0:02:46.6]} 10. exd5 {[%clk 0:02:44.6]} 10... Rb8 {[%clk 0:02:47.3]} 11. a5
{[%clk 0:02:43.5]} 11... Re8 {[%clk 0:02:44.4]} 12. Nc4 {[%clk 0:02:41.5]} 12...
b5 {[%clk 0:02:39.5]} 13. axb6 {[%clk 0:02:41]} 13... Nxb6 {[%clk 0:02:40.2]}
14. Na5 {[%clk 0:02:41.2]} 14... Qc7 {[%clk 0:02:34.1]} 15. Bf4 {[%clk
0:02:38.1]} 15... Bb7 {[%clk 0:02:22.7]} 16. Nxb7 {[%clk 0:02:29.7]} 16... Qxb7
{[%clk 0:02:23.6]} 17. Bxa6 {[%clk 0:02:28.9]} 17... Qc7 {[%clk 0:02:23.2]} 18.
Bb5 {[%clk 0:02:28.2]} 18... Red8 {[%clk 0:02:18.4]} 19. Bc6 {[%clk 0:02:24.3]}
19... g6 {[%clk 0:02:12.6]} 20. Re1 {[%clk 0:02:22.6]} 20... Nh5 {[%clk
0:02:05]} 21. Bc1 {[%clk 0:02:02.6]} 21... Bf6 {[%clk 0:01:59.6]} 22. Ne4 {[%clk
0:02:01.4]} 22... Bg7 {[%clk 0:01:53]} 23. g4 {[%clk 0:01:54.8]} 23... Nf6
{[%clk 0:01:49.3]} 24. Bg5 {[%clk 0:01:54.7]} 24... Nxe4 {[%clk 0:01:40.6]} 25.
Bxd8 {[%clk 0:01:53.9]} 25... Qxd8 {[%clk 0:01:34]} 26. Rxe4 {[%clk 0:01:53.8]}
26... Qh4 {[%clk 0:01:34.3]} 27. Qf3 {[%clk 0:01:50.6]} 27... Bxb2 {[%clk
0:01:30.2]} 28. Rb1 {[%clk 0:01:48.1]} 28... Be5 {[%clk 0:01:30.3]} 29. h3
{[%clk 0:01:29]} 29... Qg5 {[%clk 0:01:21.9]} 30. Ra4 {[%clk 0:01:16.8]} 30...
Qe7 {[%clk 0:00:58.6]} 31. Ra6 {[%clk 0:00:54.7]} 31... Qc7 {[%clk 0:00:58.7]}
32. Kg2 {[%clk 0:00:52.8]} 32... Kg7 {[%clk 0:00:58.5]} 33. g5 {[%clk
0:00:51.5]} 33... Nc8 {[%clk 0:00:54.8]} 34. Rxb8 {[%clk 0:00:42.1]} 34... Qxb8
{[%clk 0:00:55.7]} 35. Ra8 {[%clk 0:00:39.9]} 35... Qc7 {[%clk 0:00:55.7]} 36.
Be8 {[%clk 0:00:32.4]} 36... Nb6 {[%clk 0:00:50.3]} 37. Ra6 {[%clk 0:00:29]}
37... Nc4 {[%clk 0:00:42.1]} 38. h4 {[%clk 0:00:16.9]} 38... Qe7 {[%clk
0:00:30]} 39. Qxf7+ {[%clk 0:00:10.3]} 39... Qxf7 {[%clk 0:00:28.9]} 40. Bxf7
{[%clk 0:00:11.2]} 40... Kxf7 {[%clk 0:00:29.6]} 41. Ra7+ {[%clk 0:00:11.7]}
41... Kg8 {[%clk 0:00:27.6]} 42. Kf3 {[%clk 0:00:11.1]} 42... Bd4 {[%clk
0:00:12.5]} 43. Ke2 {[%clk 0:00:07]} 43... Nb6 {[%clk 0:00:10.2]} 0-1

[Event "Late-Titled-Tuesday-Blitz-June-04-2024"]
[Site "Chess.com"]
[Date "2024.06.04"]
[Round "7"]
[White "BardArtem"]
[Black "rasmussvane"]
[Result "1/2-1/2"]
[WhiteElo "2746"]
[BlackElo "2921"]
[TimeControl "180+1"]
[EndTime "15:16:19 PDT"]
[Termination "Game drawn by stalemate"]

1. d4 {[%clk 0:03:00.9]} 1... d5 {[%clk 0:02:56.5]} 2. Nc3 {[%clk 0:02:59.9]}
2... Nf6 {[%clk 0:02:53.5]} 3. Bf4 {[%clk 0:02:59.4]} 3... c5 {[%clk 0:02:45.8]}
4. e4 {[%clk 0:02:59.1]} 4... Nxe4 {[%clk 0:02:44.7]} 5. Nxe4 {[%clk 0:02:59.3]}
5... dxe4 {[%clk 0:02:45.6]} 6. dxc5 {[%clk 0:03:00]} 6... Qa5+ {[%clk
0:02:42.8]} 7. c3 {[%clk 0:03:00.2]} 7... Qxc5 {[%clk 0:02:42.3]} 8. Qa4+ {[%clk
0:02:59.6]} 8... Nc6 {[%clk 0:02:42.7]} 9. Qxe4 {[%clk 0:02:59.9]} 9... g6
{[%clk 0:02:43.3]} 10. Nf3 {[%clk 0:03:00.5]} 10... Bg7 {[%clk 0:02:43.7]} 11.
Qe3 {[%clk 0:03:01.2]} 11... Qxe3+ {[%clk 0:02:34.7]} 12. Bxe3 {[%clk
0:03:02.1]} 12... Be6 {[%clk 0:02:35.4]} 13. Bb5 {[%clk 0:02:59.9]} 13... O-O
{[%clk 0:02:34.3]} 14. O-O {[%clk 0:02:55.1]} 14... Rfc8 {[%clk 0:02:27.6]} 15.
Rfe1 {[%clk 0:02:46.9]} 15... a6 {[%clk 0:02:24.7]} 16. Bxc6 {[%clk 0:02:46]}
16... Rxc6 {[%clk 0:02:21.4]} 17. Nd4 {[%clk 0:02:42.9]} 17... Bxd4 {[%clk
0:01:39.8]} 18. Bxd4 {[%clk 0:02:43.8]} 18... f6 {[%clk 0:01:40]} 19. Re2 {[%clk
0:02:09.8]} 19... Kf7 {[%clk 0:01:39.3]} 20. Rae1 {[%clk 0:02:09.8]} 20... Re8
{[%clk 0:01:39]} 21. b3 {[%clk 0:02:03.1]} 21... b5 {[%clk 0:01:28.3]} 22. f4
{[%clk 0:01:52]} 22... h6 {[%clk 0:01:23.8]} 23. Kf2 {[%clk 0:01:51.7]} 23... g5
{[%clk 0:01:21.4]} 24. g3 {[%clk 0:01:49.3]} 24... Bf5 {[%clk 0:01:11.6]} 25.
Ke3 {[%clk 0:01:41.9]} 25... e5 {[%clk 0:01:02.3]} 26. fxe5 {[%clk 0:01:39.9]}
26... fxe5 {[%clk 0:01:02.8]} 27. Kd2 {[%clk 0:01:35.3]} 27... e4 {[%clk
0:00:43.8]} 28. Rf2 {[%clk 0:01:34.4]} 28... Kg6 {[%clk 0:00:44]} 29. Ref1
{[%clk 0:01:22.5]} 29... e3+ {[%clk 0:00:16.5]} 30. Bxe3 {[%clk 0:01:20.3]}
30... Re5 {[%clk 0:00:16.6]} 31. Bd4 {[%clk 0:01:14.9]} 31... Rd5 {[%clk
0:00:16.8]} 32. g4 {[%clk 0:01:00.6]} 32... Bxg4 {[%clk 0:00:15.4]} 33. Rf6+
{[%clk 0:01:00.9]} 33... Rxf6 {[%clk 0:00:14.2]} 34. Rxf6+ {[%clk 0:01:01.8]}
34... Kh5 {[%clk 0:00:11.4]} 35. Rxa6 {[%clk 0:01:02.4]} 35... Bf3 {[%clk
0:00:05.7]} 36. Ke3 {[%clk 0:01:02.2]} 36... Bh1 {[%clk 0:00:04.4]} 37. Bg7
{[%clk 0:00:59.4]} 37... Kg4 {[%clk 0:00:02.1]} 38. Bxh6 {[%clk 0:00:57.1]}
38... Rd7 {[%clk 0:00:02.7]} 39. a4 {[%clk 0:00:35.4]} 39... bxa4 {[%clk
0:00:02.4]} 40. Rxa4+ {[%clk 0:00:36.3]} 40... Kh5 {[%clk 0:00:02.9]} 41. Bf8
{[%clk 0:00:35.6]} 41... Rf7 {[%clk 0:00:03.5]} 42. Bd6 {[%clk 0:00:33.8]} 42...
Rf3+ {[%clk 0:00:03.6]} 43. Kd4 {[%clk 0:00:32.7]} 43... Rf2 {[%clk 0:00:03.5]}
44. Bg3 {[%clk 0:00:32.1]} 44... Rd2+ {[%clk 0:00:03.5]} 45. Kc5 {[%clk
0:00:29.6]} 45... Rc2 {[%clk 0:00:03.1]} 46. c4 {[%clk 0:00:29.4]} 46... Kg4
{[%clk 0:00:03.6]} 47. b4 {[%clk 0:00:28.5]} 47... Kh3 {[%clk 0:00:03.7]} 48. b5
{[%clk 0:00:28.8]} 48... Bf3 {[%clk 0:00:03.3]} 49. Rb4 {[%clk 0:00:26.8]} 49...
g4 {[%clk 0:00:02.7]} 50. b6 {[%clk 0:00:26.8]} 50... Bb7 {[%clk 0:00:01]} 51.
Kd6 {[%clk 0:00:26.7]} 51... Rd2+ {[%clk 0:00:01.5]} 52. Kc7 {[%clk 0:00:26.7]}
52... Bf3 {[%clk 0:00:01.5]} 53. b7 {[%clk 0:00:25.3]} 53... Bxb7 {[%clk
0:00:01.8]} 54. Kxb7 {[%clk 0:00:25.2]} 54... Rc2 {[%clk 0:00:02.1]} 55. Kb6
{[%clk 0:00:24.9]} 55... Rb2 {[%clk 0:00:01.9]} 56. Rxb2 {[%clk 0:00:25]}
1/2-1/2

[Event "Late-Titled-Tuesday-Blitz-June-04-2024"]
[Site "Chess.com"]
[Date "2024.06.04"]
[Round "7"]
[White "dealshark"]
[Black "MiguelBestard1981"]
[Result "1-0"]
[WhiteElo "2400"]
[BlackElo "2190"]
[TimeControl "180+1"]
[EndTime "15:16:19 PDT"]
[Termination "dealshark won on time"]

1. e4 {[%clk 0:03:00.9]} 1... e5 {[%clk 0:02:59]} 2. Nf3 {[%clk 0:03:00.2]} 2...
Nf6 {[%clk 0:02:58.9]} 3. Nxe5 {[%clk 0:02:59.9]} 3... d6 {[%clk 0:02:58.9]} 4.
Nf3 {[%clk 0:03:00.3]} 4... Nxe4 {[%clk 0:02:58.9]} 5. Bd3 {[%clk 0:02:57]} 5...
Nf6 {[%clk 0:02:56.3]} 6. O-O {[%clk 0:02:56.2]} 6... Be7 {[%clk 0:02:57.2]} 7.
c3 {[%clk 0:02:55.8]} 7... O-O {[%clk 0:02:58.1]} 8. Bc2 {[%clk 0:02:56.2]} 8...
Re8 {[%clk 0:02:54]} 9. h3 {[%clk 0:02:56.2]} 9... Nbd7 {[%clk 0:02:52]} 10. d4
{[%clk 0:02:56.3]} 10... Nf8 {[%clk 0:02:52.9]} 11. d5 {[%clk 0:02:51.3]} 11...
Ng6 {[%clk 0:02:50.3]} 12. c4 {[%clk 0:02:50.5]} 12... Bf8 {[%clk 0:02:46.9]}
13. Nc3 {[%clk 0:02:49.4]} 13... Bd7 {[%clk 0:02:43.5]} 14. b3 {[%clk
0:02:37.2]} 14... Ne5 {[%clk 0:02:40.2]} 15. Bf4 {[%clk 0:02:29.1]} 15... Nxf3+
{[%clk 0:02:36.2]} 16. Qxf3 {[%clk 0:02:28.9]} 16... c5 {[%clk 0:02:06.8]} 17.
Rfe1 {[%clk 0:02:27.8]} 17... Qa5 {[%clk 0:02:03.1]} 18. g4 {[%clk 0:02:07.6]}
18... Rxe1+ {[%clk 0:02:00.3]} 19. Rxe1 {[%clk 0:02:06.2]} 19... Re8 {[%clk
0:02:00.7]} 20. Rxe8 {[%clk 0:02:02.2]} 20... Nxe8 {[%clk 0:01:59.7]} 21. Kg2
{[%clk 0:01:50.4]} 21... b5 {[%clk 0:01:53.1]} 22. Qd3 {[%clk 0:01:42]} 22... g6
{[%clk 0:01:42.2]} 23. Nxb5 {[%clk 0:01:37.8]} 23... Bxb5 {[%clk 0:01:40.9]} 24.
cxb5 {[%clk 0:01:38.2]} 24... Qxa2 {[%clk 0:01:38]} 25. h4 {[%clk 0:01:22.3]}
25... Qb2 {[%clk 0:01:35]} 26. h5 {[%clk 0:01:20.7]} 26... Qd4 {[%clk
0:01:33.2]} 27. Qxd4 {[%clk 0:01:02.5]} 27... cxd4 {[%clk 0:01:34.1]} 28. Kf3
{[%clk 0:01:01.9]} 28... Nc7 {[%clk 0:01:32.3]} 29. Ke4 {[%clk 0:00:58.3]} 29...
Nxb5 {[%clk 0:01:29]} 30. Bd3 {[%clk 0:00:57.4]} 30... Nc7 {[%clk 0:00:49.1]}
31. Kxd4 {[%clk 0:00:54.6]} 31... gxh5 {[%clk 0:00:45.3]} 32. gxh5 {[%clk
0:00:54.6]} 32... Kg7 {[%clk 0:00:45.3]} 33. h6+ {[%clk 0:00:51.3]} 33... Kg8
{[%clk 0:00:37.4]} 34. Kc4 {[%clk 0:00:39.3]} 34... Be7 {[%clk 0:00:34.4]} 35.
Be4 {[%clk 0:00:36.1]} 35... Bd8 {[%clk 0:00:29.4]} 36. Bxd6 {[%clk 0:00:34.7]}
36... Ne8 {[%clk 0:00:24.4]} 37. Be5 {[%clk 0:00:33.1]} 37... Nf6 {[%clk
0:00:24]} 38. Bf5 {[%clk 0:00:26.4]} 38... Kf8 {[%clk 0:00:20.7]} 39. Kc5 {[%clk
0:00:20.4]} 39... Ng8 {[%clk 0:00:18.6]} 40. Bg7+ {[%clk 0:00:15.5]} 40... Ke8
{[%clk 0:00:17.8]} 41. Bxh7 {[%clk 0:00:15.7]} 41... Bb6+ {[%clk 0:00:17.5]} 42.
Kc6 {[%clk 0:00:15.6]} 42... Ne7+ {[%clk 0:00:12.7]} 43. Kd6 {[%clk 0:00:10.1]}
43... Nc8+ {[%clk 0:00:11.5]} 44. Ke5 {[%clk 0:00:09.4]} 44... Bc7+ {[%clk
0:00:10.4]} 45. Ke4 {[%clk 0:00:05]} 45... Nd6+ {[%clk 0:00:08.9]} 46. Kd4
{[%clk 0:00:04.4]} 46... Bb6+ {[%clk 0:00:07.8]} 47. Ke5 {[%clk 0:00:04.2]} 1-0

[Event "Late-Titled-Tuesday-Blitz-June-04-2024"]
[Site "Chess.com"]
[Date "2024.06.04"]
[Round "7"]
[White "TigrVShlyape"]
[Black "FairChess_on_YouTube"]
[Result "1/2-1/2"]
[WhiteElo "2917"]
[BlackElo "3072"]
[TimeControl "180+1"]
[EndTime "15:16:23 PDT"]
[Termination "Game drawn by repetition"]

1. e4 {[%clk 0:03:00.9]} 1... c5 {[%clk 0:02:59.6]} 2. Nf3 {[%clk 0:03:00.7]}
2... Nc6 {[%clk 0:03:00.1]} 3. d4 {[%clk 0:03:00.4]} 3... cxd4 {[%clk
0:02:59.9]} 4. Nxd4 {[%clk 0:03:00.8]} 4... Qb6 {[%clk 0:03:00.5]} 5. Nb3 {[%clk
0:02:58.7]} 5... e6 {[%clk 0:03:00.9]} 6. Nc3 {[%clk 0:02:56.7]} 6... Nf6 {[%clk
0:03:00.8]} 7. a3 {[%clk 0:02:56.7]} 7... Qc7 {[%clk 0:02:58.6]} 8. Be3 {[%clk
0:02:53]} 8... Be7 {[%clk 0:02:54.5]} 9. f4 {[%clk 0:02:51.7]} 9... O-O {[%clk
0:02:52.3]} 10. Bd3 {[%clk 0:02:41.3]} 10... d6 {[%clk 0:02:46.4]} 11. O-O
{[%clk 0:02:40.3]} 11... b6 {[%clk 0:02:43.2]} 12. Qf3 {[%clk 0:02:38.2]} 12...
Bb7 {[%clk 0:02:43]} 13. Qg3 {[%clk 0:02:38.4]} 13... Rac8 {[%clk 0:02:31.8]}
14. Rae1 {[%clk 0:02:36.8]} 14... Rfd8 {[%clk 0:02:32]} 15. Kh1 {[%clk
0:02:32.2]} 15... Qb8 {[%clk 0:02:31.7]} 16. Qh3 {[%clk 0:02:29.3]} 16... Qa8
{[%clk 0:02:18.2]} 17. Nd4 {[%clk 0:02:22.9]} 17... g6 {[%clk 0:02:13.4]} 18. f5
{[%clk 0:02:19.3]} 18... exf5 {[%clk 0:02:12.5]} 19. exf5 {[%clk 0:02:15.2]}
19... Ne5 {[%clk 0:02:05.3]} 20. Bg5 {[%clk 0:02:11.9]} 20... Rf8 {[%clk
0:01:51.5]} 21. Re2 {[%clk 0:02:04.1]} 21... Rxc3 {[%clk 0:01:43.9]} 22. bxc3
{[%clk 0:02:02.5]} 22... Qd8 {[%clk 0:01:44.5]} 23. Bh6 {[%clk 0:01:58.8]} 23...
Re8 {[%clk 0:01:34.9]} 24. Bb5 {[%clk 0:01:51.9]} 24... Ne4 {[%clk 0:01:20.2]}
25. fxg6 {[%clk 0:01:45.6]} 25... hxg6 {[%clk 0:01:19.7]} 26. Bxe8 {[%clk
0:01:27.3]} 26... Qxe8 {[%clk 0:01:20.6]} 27. Ree1 {[%clk 0:01:16.7]} 27... d5
{[%clk 0:01:10.3]} 28. c4 {[%clk 0:01:04.5]} 28... Bc8 {[%clk 0:00:59.7]} 29.
Qb3 {[%clk 0:01:01.7]} 29... dxc4 {[%clk 0:00:50.2]} 30. Qb5 {[%clk 0:00:46.6]}
30... Qxb5 {[%clk 0:00:50.2]} 31. Nxb5 {[%clk 0:00:46.7]} 31... Bb7 {[%clk
0:00:45.6]} 32. Bf4 {[%clk 0:00:38.8]} 32... Ng4 {[%clk 0:00:37.2]} 33. h3
{[%clk 0:00:37.9]} 33... Nef2+ {[%clk 0:00:34]} 34. Kg1 {[%clk 0:00:36.5]} 34...
Nxh3+ {[%clk 0:00:33.9]} 35. Kh1 {[%clk 0:00:31.4]} 35... Nhf2+ {[%clk
0:00:27.1]} 36. Rxf2 {[%clk 0:00:30.1]} 36... Nxf2+ {[%clk 0:00:27]} 37. Kg1
{[%clk 0:00:30.6]} 37... Ne4 {[%clk 0:00:23.7]} 38. Nxa7 {[%clk 0:00:29.6]}
38... Bxa3 {[%clk 0:00:19.7]} 39. Be3 {[%clk 0:00:29.7]} 39... Bc5 {[%clk
0:00:13.2]} 40. Bxc5 {[%clk 0:00:29.1]} 40... Nxc5 {[%clk 0:00:14.1]} 41. Rb1
{[%clk 0:00:27.6]} 41... Be4 {[%clk 0:00:13.6]} 42. Rxb6 {[%clk 0:00:27]} 42...
Bxc2 {[%clk 0:00:13.7]} 43. Rc6 {[%clk 0:00:27.3]} 43... Ne6 {[%clk 0:00:12.8]}
44. Rxc4 {[%clk 0:00:27.5]} 44... Bd3 {[%clk 0:00:13]} 45. Rc3 {[%clk
0:00:27.7]} 45... Bf5 {[%clk 0:00:13.2]} 46. Nc8 {[%clk 0:00:26.7]} 46... Kg7
{[%clk 0:00:13.4]} 47. Nd6 {[%clk 0:00:26.9]} 47... Bg4 {[%clk 0:00:12.4]} 48.
Kf2 {[%clk 0:00:24.7]} 48... Ng5 {[%clk 0:00:11.2]} 49. Ke3 {[%clk 0:00:24.3]}
49... Be6 {[%clk 0:00:11]} 50. Kf4 {[%clk 0:00:23.8]} 50... Nh7 {[%clk
0:00:11.5]} 51. Ne4 {[%clk 0:00:23]} 51... Nf6 {[%clk 0:00:11.4]} 52. Nxf6
{[%clk 0:00:21.8]} 52... Kxf6 {[%clk 0:00:12.3]} 53. Rc5 {[%clk 0:00:21.8]}
53... Kg7 {[%clk 0:00:12.7]} 54. g4 {[%clk 0:00:21.8]} 54... Ba2 {[%clk
0:00:12.5]} 55. g5 {[%clk 0:00:21.8]} 55... Bb3 {[%clk 0:00:12.7]} 56. Rc7
{[%clk 0:00:21.8]} 56... Ba2 {[%clk 0:00:13]} 57. Ke5 {[%clk 0:00:22.1]} 57...
Bb3 {[%clk 0:00:13.3]} 58. Rb7 {[%clk 0:00:21.4]} 58... Ba2 {[%clk 0:00:13.7]}
59. Ra7 {[%clk 0:00:20.6]} 59... Bb3 {[%clk 0:00:14.1]} 60. Rb7 {[%clk 0:00:21]}
60... Ba2 {[%clk 0:00:14.5]} 61. Ra7 {[%clk 0:00:21.4]} 61... Bb3 {[%clk
0:00:15]} 62. Rb7 {[%clk 0:00:21.7]} 1/2-1/2